[Event "Early-Titled-Tuesday-Blitz-January-30-2024"]
[Site "Chess.com"]
[Date "2024.01.30"]
[Round "8"]
[White "ErikRonka"]
[Black "tuschessCM1"]
[Result "0-1"]
[WhiteElo "2488"]
[BlackElo "2673"]
[TimeControl "180+1"]
[EndTime "9:31:43 PST"]
[Termination "tuschessCM1 won by checkmate"]

1. e4 {[%clk 0:03:00.9]} 1... c6 {[%clk 0:02:59]} 2. Nc3 {[%clk 0:02:57.6]} 2...
d5 {[%clk 0:02:59.4]} 3. Nf3 {[%clk 0:02:58.3]} 3... dxe4 {[%clk 0:02:59.7]} 4.
Nxe4 {[%clk 0:02:58.2]} 4... Nf6 {[%clk 0:03:00.6]} 5. Qe2 {[%clk 0:02:58.2]}
5... Nxe4 {[%clk 0:03:01.1]} 6. Qxe4 {[%clk 0:02:58.5]} 6... Qd5 {[%clk
0:03:01.8]} 7. Qf4 {[%clk 0:02:57.9]} 7... Qf5 {[%clk 0:03:01.7]} 8. Qe3 {[%clk
0:02:56.4]} 8... Qe6 {[%clk 0:03:01.6]} 9. b3 {[%clk 0:02:55.4]} 9... Qxe3+
{[%clk 0:03:01.2]} 10. fxe3 {[%clk 0:02:56.3]} 10... f6 {[%clk 0:03:01.3]} 11.
Bb2 {[%clk 0:02:54.1]} 11... e5 {[%clk 0:03:01.4]} 12. O-O-O {[%clk 0:02:53.8]}
12... Bf5 {[%clk 0:02:57.2]} 13. Rg1 {[%clk 0:02:53.1]} 13... Nd7 {[%clk
0:02:54.8]} 14. g4 {[%clk 0:02:52.7]} 14... Be6 {[%clk 0:02:54]} 15. g5 {[%clk
0:02:51]} 15... O-O-O {[%clk 0:02:26.3]} 16. h4 {[%clk 0:02:43.3]} 16... Kc7
{[%clk 0:02:23.4]} 17. Be2 {[%clk 0:02:25.1]} 17... Bd6 {[%clk 0:02:11.6]} 18.
e4 {[%clk 0:02:14.7]} 18... Nc5 {[%clk 0:01:48.4]} 19. d4 {[%clk 0:01:48.9]}
19... exd4 {[%clk 0:01:42.5]} 20. gxf6 {[%clk 0:01:46.6]} 20... gxf6 {[%clk
0:01:40.4]} 21. Nxd4 {[%clk 0:01:43.5]} 21... Bc8 {[%clk 0:01:38.7]} 22. Rg7+
{[%clk 0:01:24.6]} 22... Kb6 {[%clk 0:01:34.3]} 23. Bf3 {[%clk 0:01:00.3]} 23...
Bf4+ {[%clk 0:01:04.7]} 24. Kb1 {[%clk 0:01:00]} 24... Be5 {[%clk 0:01:05.6]}
25. c3 {[%clk 0:00:45.4]} 25... f5 {[%clk 0:00:56.2]} 26. Rg5 {[%clk 0:00:45.1]}
26... Bf6 {[%clk 0:00:54.1]} 27. b4 {[%clk 0:00:19.2]} 27... Nxe4 {[%clk
0:00:48.5]} 28. Rgg1 {[%clk 0:00:16.1]} 28... Bxh4 {[%clk 0:00:39.9]} 29. Kc2
{[%clk 0:00:15.6]} 29... Bf6 {[%clk 0:00:38]} 30. a4 {[%clk 0:00:13]} 30... Kc7
{[%clk 0:00:36.9]} 31. c4 {[%clk 0:00:10.9]} 31... Rhf8 {[%clk 0:00:34]} 32. Rh1
{[%clk 0:00:09.5]} 32... Rf7 {[%clk 0:00:32.2]} 33. Rh2 {[%clk 0:00:09.7]} 33...
Be7 {[%clk 0:00:25.2]} 34. c5 {[%clk 0:00:08.5]} 34... b6 {[%clk 0:00:20.5]} 35.
cxb6+ {[%clk 0:00:08.1]} 35... axb6 {[%clk 0:00:19.7]} 36. b5 {[%clk 0:00:08.8]}
36... cxb5 {[%clk 0:00:19.6]} 37. Nxb5+ {[%clk 0:00:08.4]} 37... Kc6 {[%clk
0:00:16.2]} 38. Rxd8 {[%clk 0:00:07.8]} 38... Bxd8 {[%clk 0:00:17.1]} 39. Re2
{[%clk 0:00:07]} 39... Be6 {[%clk 0:00:14.1]} 40. Nd4+ {[%clk 0:00:06.2]} 40...
Kd7 {[%clk 0:00:12.7]} 41. Nxe6 {[%clk 0:00:06.1]} 41... Kxe6 {[%clk 0:00:13.6]}
42. Bxe4 {[%clk 0:00:04.5]} 42... fxe4 {[%clk 0:00:14.5]} 43. Rxe4+ {[%clk
0:00:05.4]} 43... Kd7 {[%clk 0:00:15]} 44. Rg4 {[%clk 0:00:05]} 44... Bc7 {[%clk
0:00:14.1]} 45. Bd4 {[%clk 0:00:05.1]} 45... h5 {[%clk 0:00:13.2]} 46. Rh4
{[%clk 0:00:05.1]} 46... Rh7 {[%clk 0:00:13.3]} 47. Kd3 {[%clk 0:00:05.7]} 47...
Bd8 {[%clk 0:00:13.5]} 48. Rh3 {[%clk 0:00:05.8]} 48... h4 {[%clk 0:00:14.1]}
49. Ke4 {[%clk 0:00:05.1]} 49... Kc6 {[%clk 0:00:14.3]} 50. Bf2 {[%clk
0:00:03.5]} 50... Ra7 {[%clk 0:00:14.3]} 51. Ra3 {[%clk 0:00:01.7]} 51... Be7
{[%clk 0:00:13.7]} 52. Ra2 {[%clk 0:00:01.6]} 52... Ra5 {[%clk 0:00:13.5]} 53.
Kf3 {[%clk 0:00:02]} 53... Kb7 {[%clk 0:00:12.5]} 54. Be1 {[%clk 0:00:02.4]}
54... Rd5 {[%clk 0:00:11.3]} 55. a5 {[%clk 0:00:02.7]} 55... b5 {[%clk
0:00:11.8]} 56. Kg4 {[%clk 0:00:02.7]} 56... Ka6 {[%clk 0:00:11.8]} 57. Kh3
{[%clk 0:00:02.8]} 57... b4 {[%clk 0:00:10.7]} 58. Re2 {[%clk 0:00:02.7]} 58...
Bd6 {[%clk 0:00:10.9]} 59. Bxb4 {[%clk 0:00:02.7]} 59... Bxb4 {[%clk 0:00:10.7]}
60. Kxh4 {[%clk 0:00:03.4]} 60... Kxa5 {[%clk 0:00:11]} 61. Re4 {[%clk
0:00:03.8]} 61... Bd6 {[%clk 0:00:09]} 62. Kg4 {[%clk 0:00:04.4]} 62... Kb5
{[%clk 0:00:09.5]} 63. Kf3 {[%clk 0:00:04.2]} 63... Kc6 {[%clk 0:00:09.7]} 64.
Ke3 {[%clk 0:00:04.6]} 64... Bc5+ {[%clk 0:00:10]} 65. Ke2 {[%clk 0:00:03.5]}
65... Rh5 {[%clk 0:00:10.3]} 66. Rg4 {[%clk 0:00:04.2]} 66... Kd5 {[%clk
0:00:10.8]} 67. Kd3 {[%clk 0:00:04.6]} 67... Rh3+ {[%clk 0:00:10.5]} 68. Kc2
{[%clk 0:00:05]} 68... Bd4 {[%clk 0:00:10.6]} 69. Rg8 {[%clk 0:00:05.4]} 69...
Kc4 {[%clk 0:00:10.7]} 70. Rc8+ {[%clk 0:00:05]} 70... Bc5 {[%clk 0:00:11.3]}
71. Kd2 {[%clk 0:00:05]} 71... Rh2+ {[%clk 0:00:11.5]} 72. Ke1 {[%clk
0:00:05.2]} 72... Kd5 {[%clk 0:00:09.6]} 73. Rd8+ {[%clk 0:00:05.3]} 73... Ke4
{[%clk 0:00:10.3]} 74. Re8+ {[%clk 0:00:05.8]} 74... Kd3 {[%clk 0:00:10.2]} 75.
Kf1 {[%clk 0:00:05.4]} 75... Rf2+ {[%clk 0:00:09.2]} 76. Ke1 {[%clk 0:00:05.8]}
76... Rf7 {[%clk 0:00:07.7]} 77. Rd8+ {[%clk 0:00:04.9]} 77... Bd4 {[%clk
0:00:08.2]} 78. Ra8 {[%clk 0:00:04.1]} 78... Bc3+ {[%clk 0:00:07.7]} 79. Kd1
{[%clk 0:00:03.1]} 79... Rf1# {[%clk 0:00:08.6]} 0-1

[Event "Early-Titled-Tuesday-Blitz-January-30-2024"]
[Site "Chess.com"]
[Date "2024.01.30"]
[Round "8"]
[White "invisible_s0ul"]
[Black "vesalhamedinia"]
[Result "1/2-1/2"]
[WhiteElo "2252"]
[BlackElo "2469"]
[TimeControl "180+1"]
[EndTime "9:31:51 PST"]
[Termination "Game drawn by stalemate"]

1. e4 {[%clk 0:02:55.7]} 1... c5 {[%clk 0:03:00.1]} 2. Nf3 {[%clk 0:02:56.2]}
2... Nc6 {[%clk 0:03:00.4]} 3. d4 {[%clk 0:02:53.1]} 3... cxd4 {[%clk
0:03:01.3]} 4. Nxd4 {[%clk 0:02:53.7]} 4... Nf6 {[%clk 0:03:01.9]} 5. Nc3 {[%clk
0:02:54.1]} 5... e5 {[%clk 0:03:01.9]} 6. Ndb5 {[%clk 0:02:54.3]} 6... d6 {[%clk
0:03:02.4]} 7. Bg5 {[%clk 0:02:54.1]} 7... a6 {[%clk 0:03:03]} 8. Na3 {[%clk
0:02:54.7]} 8... b5 {[%clk 0:03:03.5]} 9. Nd5 {[%clk 0:02:54.9]} 9... Be7 {[%clk
0:03:03.8]} 10. Bxf6 {[%clk 0:02:55.5]} 10... Bxf6 {[%clk 0:03:04.7]} 11. c3
{[%clk 0:02:56]} 11... O-O {[%clk 0:03:03.6]} 12. Nc2 {[%clk 0:02:53.5]} 12...
Rb8 {[%clk 0:03:04.2]} 13. a4 {[%clk 0:02:30.8]} 13... bxa4 {[%clk 0:03:03.1]}
14. Ncb4 {[%clk 0:02:31.4]} 14... Bb7 {[%clk 0:02:25.3]} 15. Bxa6 {[%clk
0:01:53.3]} 15... Nxb4 {[%clk 0:02:16.9]} 16. Bxb7 {[%clk 0:01:50.4]} 16... Nxd5
{[%clk 0:01:37.1]} 17. Bxd5 {[%clk 0:01:39.5]} 17... Rxb2 {[%clk 0:01:34.8]} 18.
Qxa4 {[%clk 0:01:18.7]} 18... Qb6 {[%clk 0:01:09.2]} 19. O-O {[%clk 0:01:17.8]}
19... Bh4 {[%clk 0:01:07.8]} 20. g3 {[%clk 0:01:10.5]} 20... Bg5 {[%clk
0:01:07.9]} 21. Qd7 {[%clk 0:01:05.9]} 21... h6 {[%clk 0:00:53.2]} 22. Ra8
{[%clk 0:00:18]} 22... Bd8 {[%clk 0:00:28.3]} 23. Bxf7+ {[%clk 0:00:11.4]} 23...
Kh8 {[%clk 0:00:21.8]} 24. Qe6 {[%clk 0:00:11]} 24... Qb7 {[%clk 0:00:19]} 25.
Rxd8 {[%clk 0:00:08.2]} 25... Rxd8 {[%clk 0:00:18.2]} 26. Qg6 {[%clk 0:00:07.6]}
26... Rf8 {[%clk 0:00:17.4]} 27. Be6 {[%clk 0:00:07.8]} 27... Qa7 {[%clk
0:00:10.9]} 28. Bf5 {[%clk 0:00:07.1]} 28... Rxf5 {[%clk 0:00:10.3]} 29. Qxf5
{[%clk 0:00:06.5]} 29... Qc7 {[%clk 0:00:09.9]} 30. Qf8+ {[%clk 0:00:06.4]}
30... Kh7 {[%clk 0:00:09.8]} 31. Qf3 {[%clk 0:00:06.6]} 31... Kg8 {[%clk
0:00:09.7]} 32. Rc1 {[%clk 0:00:05.7]} 32... Rb3 {[%clk 0:00:09.9]} 33. Qd3
{[%clk 0:00:06.2]} 33... Rb6 {[%clk 0:00:09.1]} 34. Qd5+ {[%clk 0:00:06.6]}
34... Kh7 {[%clk 0:00:09.7]} 35. c4 {[%clk 0:00:07.2]} 35... Rb2 {[%clk
0:00:08.6]} 36. Qe6 {[%clk 0:00:07.3]} 36... Qb6 {[%clk 0:00:08]} 37. Qf5+
{[%clk 0:00:07.6]} 37... Kg8 {[%clk 0:00:08.4]} 38. Qe6+ {[%clk 0:00:07.7]}
38... Kf8 {[%clk 0:00:08.2]} 39. Qf5+ {[%clk 0:00:08.2]} 39... Ke7 {[%clk
0:00:08.6]} 40. c5 {[%clk 0:00:07.7]} 40... dxc5 {[%clk 0:00:05.4]} 41. Qxe5+
{[%clk 0:00:07.8]} 41... Kf7 {[%clk 0:00:05.5]} 42. Qxc5 {[%clk 0:00:05.3]}
42... Qxc5 {[%clk 0:00:03.3]} 43. Rxc5 {[%clk 0:00:06.2]} 43... Re2 {[%clk
0:00:03.8]} 44. Rc4 {[%clk 0:00:05.3]} 44... Ke6 {[%clk 0:00:04.3]} 45. Kg2
{[%clk 0:00:06]} 45... Ke5 {[%clk 0:00:04.1]} 46. Kf3 {[%clk 0:00:06.7]} 46...
Rb2 {[%clk 0:00:03.6]} 47. Rc5+ {[%clk 0:00:07.1]} 47... Ke6 {[%clk 0:00:04]}
48. Rd5 {[%clk 0:00:07.1]} 48... Rb3+ {[%clk 0:00:03.9]} 49. Kg2 {[%clk
0:00:07.7]} 49... Rb2 {[%clk 0:00:04.2]} 50. Ra5 {[%clk 0:00:07.8]} 50... Re2
{[%clk 0:00:04.7]} 51. Kf3 {[%clk 0:00:07.9]} 51... Rb2 {[%clk 0:00:05]} 52. Ke3
{[%clk 0:00:08.2]} 52... Rb3+ {[%clk 0:00:04.9]} 53. Ke2 {[%clk 0:00:06.9]}
53... Rb2+ {[%clk 0:00:05.3]} 54. Kf1 {[%clk 0:00:07.6]} 54... Rb1+ {[%clk
0:00:04.7]} 55. Kg2 {[%clk 0:00:08.2]} 55... Rb4 {[%clk 0:00:05.4]} 56. f3
{[%clk 0:00:07.9]} 56... Rb2+ {[%clk 0:00:05.7]} 57. Kh3 {[%clk 0:00:08.4]}
57... Rf2 {[%clk 0:00:06.4]} 58. Rf5 {[%clk 0:00:06]} 58... g6 {[%clk
0:00:05.5]} 59. Rf8 {[%clk 0:00:06]} 59... h5 {[%clk 0:00:05.8]} 60. g4 {[%clk
0:00:03.5]} 60... hxg4+ {[%clk 0:00:04.6]} 61. Kxg4 {[%clk 0:00:03.8]} 61...
Rxh2 {[%clk 0:00:04.9]} 62. Rg8 {[%clk 0:00:03.7]} 62... Rg2+ {[%clk 0:00:05.3]}
63. Kf4 {[%clk 0:00:03.6]} 63... Rg1 {[%clk 0:00:05.6]} 64. Rg7 {[%clk 0:00:03]}
64... Rg2 {[%clk 0:00:05.5]} 65. Rg8 {[%clk 0:00:03.5]} 65... Rg1 {[%clk
0:00:05.9]} 66. Ke3 {[%clk 0:00:03.8]} 66... Rg2 {[%clk 0:00:06]} 67. f4 {[%clk
0:00:04.2]} 67... Rg3+ {[%clk 0:00:06.5]} 68. Kf2 {[%clk 0:00:04.4]} 68... Rg4
{[%clk 0:00:05.6]} 69. Kf3 {[%clk 0:00:03.4]} 69... Rg1 {[%clk 0:00:05.9]} 70.
f5+ {[%clk 0:00:04]} 70... Kf6 {[%clk 0:00:04.9]} 71. Rxg6+ {[%clk 0:00:03.2]}
71... Rxg6 {[%clk 0:00:05.1]} 72. fxg6 {[%clk 0:00:04.1]} 72... Kxg6 {[%clk
0:00:05.9]} 73. Kg4 {[%clk 0:00:04.7]} 73... Kf6 {[%clk 0:00:06.1]} 74. Kf4
{[%clk 0:00:05.4]} 74... Ke6 {[%clk 0:00:06.7]} 75. e5 {[%clk 0:00:05.5]} 75...
Ke7 {[%clk 0:00:07.2]} 76. Kf5 {[%clk 0:00:05.8]} 76... Kf7 {[%clk 0:00:07.7]}
77. e6+ {[%clk 0:00:06.5]} 77... Ke7 {[%clk 0:00:08.2]} 78. Ke5 {[%clk
0:00:07.4]} 78... Ke8 {[%clk 0:00:08.5]} 79. Kd6 {[%clk 0:00:08.3]} 79... Kd8
{[%clk 0:00:08.6]} 80. e7+ {[%clk 0:00:09.2]} 80... Ke8 {[%clk 0:00:09.1]} 81.
Ke6 {[%clk 0:00:08.8]} 1/2-1/2

[Event "Early-Titled-Tuesday-Blitz-January-30-2024"]
[Site "Chess.com"]
[Date "2024.01.30"]
[Round "8"]
[White "Licancabur"]
[Black "ChEsper99"]
[Result "1-0"]
[WhiteElo "2432"]
[BlackElo "2147"]
[TimeControl "180+1"]
[EndTime "9:31:57 PST"]
[Termination "Licancabur won by resignation"]

1. d4 {[%clk 0:03:00.9]} 1... Nf6 {[%clk 0:02:57.3]} 2. Bg5 {[%clk 0:03:00.8]}
2... d5 {[%clk 0:02:54.7]} 3. Nd2 {[%clk 0:02:56.5]} 3... c5 {[%clk 0:02:51.9]}
4. dxc5 {[%clk 0:02:55.2]} 4... e6 {[%clk 0:02:51.9]} 5. e3 {[%clk 0:02:54.2]}
5... Bxc5 {[%clk 0:02:46.6]} 6. Ngf3 {[%clk 0:02:54.4]} 6... Nc6 {[%clk
0:02:36.1]} 7. c4 {[%clk 0:02:52.9]} 7... dxc4 {[%clk 0:02:27]} 8. Bxc4 {[%clk
0:02:41.5]} 8... O-O {[%clk 0:02:25.7]} 9. O-O {[%clk 0:02:40.4]} 9... h6 {[%clk
0:02:25.5]} 10. Bh4 {[%clk 0:02:37]} 10... Be7 {[%clk 0:02:23.5]} 11. Qe2 {[%clk
0:02:31.2]} 11... Qb6 {[%clk 0:02:08.2]} 12. Rab1 {[%clk 0:02:04]} 12... Bd7
{[%clk 0:02:07.3]} 13. b4 {[%clk 0:02:03.6]} 13... Rac8 {[%clk 0:02:00.7]} 14.
Rfd1 {[%clk 0:01:39]} 14... Rfd8 {[%clk 0:02:00.3]} 15. a3 {[%clk 0:01:29.1]}
15... Be8 {[%clk 0:01:59.8]} 16. h3 {[%clk 0:01:24.6]} 16... a6 {[%clk
0:01:45.8]} 17. Ba2 {[%clk 0:01:00.5]} 17... Qb5 {[%clk 0:01:23.3]} 18. Bc4
{[%clk 0:00:48.5]} 18... Qb6 {[%clk 0:01:22.8]} 19. Nb3 {[%clk 0:00:44.3]} 19...
Qa7 {[%clk 0:01:13.8]} 20. Nbd4 {[%clk 0:00:41.2]} 20... Nxd4 {[%clk 0:01:12.4]}
21. Nxd4 {[%clk 0:00:40.6]} 21... b5 {[%clk 0:01:07.2]} 22. Ba2 {[%clk
0:00:37.6]} 22... Nd5 {[%clk 0:01:01.5]} 23. Bxe7 {[%clk 0:00:31.9]} 23... Qxe7
{[%clk 0:00:55.2]} 24. Bxd5 {[%clk 0:00:30.9]} 24... Rxd5 {[%clk 0:00:53.4]} 25.
Rbc1 {[%clk 0:00:29.1]} 25... Rdd8 {[%clk 0:00:45.2]} 26. Qf3 {[%clk 0:00:25.5]}
26... Rxc1 {[%clk 0:00:34.7]} 27. Rxc1 {[%clk 0:00:25]} 27... Qd6 {[%clk
0:00:32.7]} 28. Qb7 {[%clk 0:00:18.4]} 28... Rb8 {[%clk 0:00:28]} 29. Qc7 {[%clk
0:00:16.7]} 29... Rd8 {[%clk 0:00:12.4]} 30. Qxd6 {[%clk 0:00:14.5]} 30... Rxd6
{[%clk 0:00:13.3]} 31. Rc7 {[%clk 0:00:12.6]} 31... Kf8 {[%clk 0:00:11.1]} 32.
Kf1 {[%clk 0:00:12.2]} 32... g6 {[%clk 0:00:10.3]} 33. Ke2 {[%clk 0:00:11.8]}
33... e5 {[%clk 0:00:10.5]} 34. Nb3 {[%clk 0:00:10.3]} 34... Bd7 {[%clk
0:00:02.9]} 35. Nc5 {[%clk 0:00:09.2]} 35... Bf5 {[%clk 0:00:02.9]} 36. e4
{[%clk 0:00:08.9]} 36... Be6 {[%clk 0:00:03.1]} 37. Ra7 {[%clk 0:00:08.1]} 37...
Bc4+ {[%clk 0:00:02.8]} 38. Ke3 {[%clk 0:00:08.5]} 38... Rd1 {[%clk 0:00:02]}
39. Rxa6 {[%clk 0:00:05.8]} 39... Re1+ {[%clk 0:00:01.4]} 40. Kd2 {[%clk
0:00:05.9]} 40... Re2+ {[%clk 0:00:02]} 41. Kc3 {[%clk 0:00:05.2]} 41... Rxf2
{[%clk 0:00:02.9]} 42. a4 {[%clk 0:00:05.6]} 42... Rxg2 {[%clk 0:00:03.2]} 43.
a5 {[%clk 0:00:05.6]} 43... Rg3+ {[%clk 0:00:02.9]} 44. Kb2 {[%clk 0:00:04.7]}
44... Rxh3 {[%clk 0:00:03.8]} 45. Ra8+ {[%clk 0:00:03.9]} 45... Kg7 {[%clk
0:00:03.7]} 46. a6 {[%clk 0:00:03.9]} 46... Rh2+ {[%clk 0:00:02.4]} 47. Kb1
{[%clk 0:00:03.8]} 47... Ra2 {[%clk 0:00:02.4]} 48. a7 {[%clk 0:00:02.6]} 48...
g5 {[%clk 0:00:01.8]} 49. Nb7 {[%clk 0:00:02.6]} 49... g4 {[%clk 0:00:01.8]} 50.
Na5 {[%clk 0:00:03.3]} 50... Rxa5 {[%clk 0:00:01.1]} 51. bxa5 {[%clk 0:00:03]}
51... g3 {[%clk 0:00:02]} 52. Rg8+ {[%clk 0:00:02.8]} 52... Kxg8 {[%clk
0:00:02.5]} 53. a8=Q+ {[%clk 0:00:03.5]} 53... Kg7 {[%clk 0:00:03.4]} 54. Qb8
{[%clk 0:00:03.3]} 54... g2 {[%clk 0:00:03.5]} 55. Qxe5+ {[%clk 0:00:03.6]}
55... Kf8 {[%clk 0:00:03.8]} 56. Qg3 {[%clk 0:00:04.1]} 56... Bf1 {[%clk
0:00:03.4]} 57. a6 {[%clk 0:00:04.8]} 57... b4 {[%clk 0:00:02.8]} 58. a7 {[%clk
0:00:04.7]} 58... Bd3+ {[%clk 0:00:03]} 59. Kb2 {[%clk 0:00:04.2]} 59... Bxe4
{[%clk 0:00:03.5]} 60. Qd6+ {[%clk 0:00:02.9]} 60... Kg8 {[%clk 0:00:03.5]} 61.
Qg3+ {[%clk 0:00:02.5]} 61... Kf8 {[%clk 0:00:03.8]} 62. Kb3 {[%clk 0:00:03]}
62... f5 {[%clk 0:00:03.6]} 63. Kxb4 {[%clk 0:00:03.4]} 63... Kf7 {[%clk
0:00:04]} 64. Kc5 {[%clk 0:00:02.9]} 64... Kf6 {[%clk 0:00:04.3]} 65. Kb6 {[%clk
0:00:03.6]} 65... h5 {[%clk 0:00:03.2]} 66. Kc7 {[%clk 0:00:04]} 66... Ke6
{[%clk 0:00:02.5]} 67. Kb8 {[%clk 0:00:04.4]} 67... h4 {[%clk 0:00:02.8]} 68.
Qg6+ {[%clk 0:00:03.8]} 68... Ke5 {[%clk 0:00:03]} 69. a8=Q {[%clk 0:00:04]}
69... Bxa8 {[%clk 0:00:02.4]} 70. Kxa8 {[%clk 0:00:04.3]} 70... Kf4 {[%clk
0:00:02.2]} 71. Qxg2 {[%clk 0:00:04.3]} 1-0

[Event "Early-Titled-Tuesday-Blitz-January-30-2024"]
[Site "Chess.com"]
[Date "2024.01.30"]
[Round "8"]
[White "MBA_CHESS_2021"]
[Black "MFatigue"]
[Result "0-1"]
[WhiteElo "2251"]
[BlackElo "2465"]
[TimeControl "180+1"]
[EndTime "9:32:33 PST"]
[Termination "MFatigue won by checkmate"]

1. e4 {[%clk 0:03:00.9]} 1... e6 {[%clk 0:02:57.4]} 2. c4 {[%clk 0:02:58.1]}
2... d5 {[%clk 0:02:57.4]} 3. cxd5 {[%clk 0:02:58.5]} 3... exd5 {[%clk
0:02:58.3]} 4. exd5 {[%clk 0:02:59.1]} 4... Nf6 {[%clk 0:02:58.9]} 5. Nc3 {[%clk
0:02:58.7]} 5... Nxd5 {[%clk 0:02:59.4]} 6. d4 {[%clk 0:02:59.1]} 6... Bb4
{[%clk 0:02:56]} 7. Bd2 {[%clk 0:02:56.1]} 7... O-O {[%clk 0:02:56.2]} 8. Be2
{[%clk 0:02:55.3]} 8... Nc6 {[%clk 0:02:49.6]} 9. Nf3 {[%clk 0:02:55]} 9... Bg4
{[%clk 0:02:40.4]} 10. O-O {[%clk 0:02:54.9]} 10... Ba5 {[%clk 0:02:40.4]} 11.
h3 {[%clk 0:02:40.1]} 11... Bh5 {[%clk 0:02:39.5]} 12. Qb3 {[%clk 0:02:32.7]}
12... Nxc3 {[%clk 0:02:26.6]} 13. bxc3 {[%clk 0:02:31.6]} 13... Bb6 {[%clk
0:02:27]} 14. a4 {[%clk 0:02:28.9]} 14... Na5 {[%clk 0:02:26.1]} 15. Qb2 {[%clk
0:02:20.1]} 15... c5 {[%clk 0:02:16.9]} 16. Be3 {[%clk 0:02:15.2]} 16... cxd4
{[%clk 0:02:15]} 17. cxd4 {[%clk 0:02:10.1]} 17... Rc8 {[%clk 0:01:59.5]} 18.
Rfc1 {[%clk 0:01:59.9]} 18... Qd5 {[%clk 0:01:48]} 19. Qb5 {[%clk 0:01:53.6]}
19... Bxf3 {[%clk 0:01:08.8]} 20. Bxf3 {[%clk 0:01:50]} 20... Qxb5 {[%clk
0:01:09.1]} 21. axb5 {[%clk 0:01:49.8]} 21... Rxc1+ {[%clk 0:01:01.7]} 22. Rxc1
{[%clk 0:01:48.9]} 22... Rd8 {[%clk 0:01:02]} 23. Rd1 {[%clk 0:01:10.7]} 23...
Kf8 {[%clk 0:00:57]} 24. Kf1 {[%clk 0:01:09.5]} 24... Ke7 {[%clk 0:00:56.7]} 25.
Ke2 {[%clk 0:01:08.9]} 25... Nb3 {[%clk 0:00:46.9]} 26. d5 {[%clk 0:01:04.8]}
26... Kd6 {[%clk 0:00:35.1]} 27. Rd3 {[%clk 0:00:40]} 27... Bxe3 {[%clk
0:00:28.6]} 28. Rxb3 {[%clk 0:00:38]} 28... Bb6 {[%clk 0:00:26.6]} 29. Rc3
{[%clk 0:00:35.9]} 29... Re8+ {[%clk 0:00:25.1]} 30. Kf1 {[%clk 0:00:32.6]}
30... h6 {[%clk 0:00:19.5]} 31. g3 {[%clk 0:00:31.1]} 31... Bc5 {[%clk
0:00:19.9]} 32. Kg2 {[%clk 0:00:29.2]} 32... a5 {[%clk 0:00:20]} 33. bxa6 {[%clk
0:00:28.6]} 33... bxa6 {[%clk 0:00:20.9]} 34. Rb3 {[%clk 0:00:25.8]} 34... a5
{[%clk 0:00:14]} 35. Rb5 {[%clk 0:00:26]} 35... a4 {[%clk 0:00:13.4]} 36. Ra5
{[%clk 0:00:23.9]} 36... a3 {[%clk 0:00:13.8]} 37. Ra6+ {[%clk 0:00:24.1]} 37...
Ke5 {[%clk 0:00:14.2]} 38. Ra5 {[%clk 0:00:21.9]} 38... Kd4 {[%clk 0:00:13.6]}
39. d6 {[%clk 0:00:19.7]} 39... Rd8 {[%clk 0:00:11.5]} 40. Ra4+ {[%clk
0:00:18.7]} 40... Kc3 {[%clk 0:00:09.1]} 41. Ra5 {[%clk 0:00:18.5]} 41... Kb4
{[%clk 0:00:08.9]} 42. Ra6 {[%clk 0:00:17]} 42... Bxd6 {[%clk 0:00:08]} 43. Bd5
{[%clk 0:00:15.4]} 43... Bxg3 {[%clk 0:00:06.6]} 44. Bxf7 {[%clk 0:00:14.2]}
44... Be5 {[%clk 0:00:06.8]} 45. Kf3 {[%clk 0:00:13.6]} 45... Rf8 {[%clk
0:00:05.4]} 46. Ra7 {[%clk 0:00:13.5]} 46... a2 {[%clk 0:00:04.8]} 47. Rxa2
{[%clk 0:00:11.5]} 47... Rxf7+ {[%clk 0:00:05]} 48. Ke4 {[%clk 0:00:12.4]} 48...
Bf6 {[%clk 0:00:04.1]} 49. f4 {[%clk 0:00:12.6]} 49... Bc3 {[%clk 0:00:02.9]}
50. Ra6 {[%clk 0:00:11.7]} 50... Kc5 {[%clk 0:00:02.2]} 51. Ra8 {[%clk
0:00:09.8]} 51... Kd6 {[%clk 0:00:02.2]} 52. Ra6+ {[%clk 0:00:08.5]} 52... Ke7
{[%clk 0:00:02.8]} 53. h4 {[%clk 0:00:08]} 53... Kf8 {[%clk 0:00:01.9]} 54. h5
{[%clk 0:00:08.2]} 54... Bf6 {[%clk 0:00:02.2]} 55. Kf5 {[%clk 0:00:08]} 55...
Re7 {[%clk 0:00:02]} 56. Kg6 {[%clk 0:00:07.8]} 56... Re8 {[%clk 0:00:02.2]} 57.
Ra7 {[%clk 0:00:07.5]} 57... Kg8 {[%clk 0:00:02.1]} 58. f5 {[%clk 0:00:07.8]}
58... Rf8 {[%clk 0:00:02.1]} 59. Rb7 {[%clk 0:00:07.6]} 59... Re8 {[%clk
0:00:02.1]} 60. Ra7 {[%clk 0:00:07.6]} 60... Kf8 {[%clk 0:00:02.7]} 61. Rf7+
{[%clk 0:00:07.4]} 61... Kg8 {[%clk 0:00:02.9]} 62. Rb7 {[%clk 0:00:08.3]} 62...
Rc8 {[%clk 0:00:02.6]} 63. Ra7 {[%clk 0:00:08.2]} 63... Kf8 {[%clk 0:00:02.7]}
64. Rf7+ {[%clk 0:00:07.6]} 64... Ke8 {[%clk 0:00:03.4]} 65. Ra7 {[%clk
0:00:07.5]} 65... Rc4 {[%clk 0:00:02.7]} 66. Ra8+ {[%clk 0:00:06.8]} 66... Ke7
{[%clk 0:00:03.2]} 67. Ra7+ {[%clk 0:00:07.2]} 67... Kd6 {[%clk 0:00:03.7]} 68.
Ra6+ {[%clk 0:00:07.8]} 68... Ke5 {[%clk 0:00:04.4]} 69. Re6+ {[%clk 0:00:08.3]}
69... Kf4 {[%clk 0:00:04.7]} 70. Ra6 {[%clk 0:00:08]} 70... Kg4 {[%clk
0:00:03.9]} 71. Ra5 {[%clk 0:00:07.5]} 71... Rf4 {[%clk 0:00:03.4]} 72. Rb5
{[%clk 0:00:07.2]} 72... Kh4 {[%clk 0:00:03.6]} 73. Rb1 {[%clk 0:00:04.5]} 73...
Rg4+ {[%clk 0:00:03.3]} 74. Kf7 {[%clk 0:00:05.2]} 74... Rg5 {[%clk 0:00:03.7]}
75. Rf1 {[%clk 0:00:05.2]} 75... Kxh5 {[%clk 0:00:03.8]} 76. Ke6 {[%clk
0:00:05.3]} 76... Kg4 {[%clk 0:00:04.3]} 77. Rg1+ {[%clk 0:00:05.4]} 77... Kf4
{[%clk 0:00:04.6]} 78. Rf1+ {[%clk 0:00:06.1]} 78... Kg4 {[%clk 0:00:05.3]} 79.
Rg1+ {[%clk 0:00:06.5]} 79... Kf3 {[%clk 0:00:06]} 80. Rf1+ {[%clk 0:00:07]}
80... Kg2 {[%clk 0:00:06.7]} 81. Rd1 {[%clk 0:00:06.5]} 81... h5 {[%clk
0:00:07.1]} 82. Rd4 {[%clk 0:00:06.7]} 82... Rg4 {[%clk 0:00:05.7]} 83. Rd2+
{[%clk 0:00:06]} 83... Kh3 {[%clk 0:00:05.8]} 84. Rd3+ {[%clk 0:00:06.4]} 84...
Rg3 {[%clk 0:00:06.5]} 85. Rd1 {[%clk 0:00:06.3]} 85... h4 {[%clk 0:00:06.9]}
86. Rh1+ {[%clk 0:00:07]} 86... Kg4 {[%clk 0:00:07.5]} 87. Kd5 {[%clk
0:00:06.6]} 87... h3 {[%clk 0:00:07.8]} 88. Ke4 {[%clk 0:00:07]} 88... Rg2
{[%clk 0:00:06.5]} 89. Rd1 {[%clk 0:00:06.6]} 89... h2 {[%clk 0:00:06.6]} 90.
Ke3 {[%clk 0:00:03.9]} 90... Kg3 {[%clk 0:00:06]} 91. Rd3 {[%clk 0:00:03.7]}
91... h1=Q {[%clk 0:00:05.3]} 92. Ke4+ {[%clk 0:00:04.5]} 92... Kg4 {[%clk
0:00:05]} 93. Kd5 {[%clk 0:00:05.1]} 93... Qe1 {[%clk 0:00:03.8]} 94. Kc5 {[%clk
0:00:03.4]} 94... Qe5+ {[%clk 0:00:03.8]} 95. Kc4 {[%clk 0:00:01.3]} 95... Rc2+
{[%clk 0:00:04.2]} 96. Kb3 {[%clk 0:00:01.8]} 96... Qb2+ {[%clk 0:00:04.3]} 97.
Ka4 {[%clk 0:00:02.2]} 97... Rc4+ {[%clk 0:00:04.4]} 98. Ka5 {[%clk 0:00:02.3]}
98... Qb4+ {[%clk 0:00:04.1]} 99. Ka6 {[%clk 0:00:02.5]} 99... Rc6+ {[%clk
0:00:04.5]} 100. Ka7 {[%clk 0:00:03]} 100... Qb6+ {[%clk 0:00:05.2]} 101. Ka8
{[%clk 0:00:03.5]} 101... Rc8# {[%clk 0:00:06.1]} 0-1